[Event "44th Chess Olympiad Women 2022"]
[Site "Chennai"]
[Date "2022.07.30"]
[Round "2.24"]
[White "Hernandez Alvarez, Tania Regla"]
[Black "Vo, Thi Kim Phung"]
[Result "1/2-1/2"]
[WhiteElo "2058"]
[BlackElo "2333"]
[Annotator "TA"]
[PlyCount "185"]
[EventDate "2022.??.??"]
[TimeControl "60"]

{[%evp 9,185,-23,-22,-22,0,0,0,-21,0,0,0,7,0,0,0,10,37,6,51,0,13,0,4,0,0,0,0,0,
8,0,27,27,22,0,5,0,0,0,9,0,80,95,130,73,121,126,151,156,244,231,225,236,225,
223,226,127,126,124,129,105,208,202,270,257,268,289,330,331,308,205,364,335,
385,270,262,215,469,462,456,441,516,531,528,527,520,524,494,503,496,512,511,
505,472,415,415,408,400,357,528,403,418,312,312,312,508,312,544,541,521,472,
559,461,450,112,129,104,108,78,79,91,102,90,146,0,0,0,0,0,0,0,0,0,0,0,0,0,0,0,
0,0,0,0,0,0,0,0,0,0,0,0,0,0,0,0,0,0,0,0,0,0,0,0,0,0,0,0,0,0,0,0,0,0,0,0,0,0,0,
0]} 1. Nf3 {[%emt 0:00:04]} d5 {[%emt 0:00:10]} 2. c4 {[%emt 0:00:07]} d4 {
[%emt 0:00:07]} 3. e3 {[%emt 0:00:34]} c5 {[%emt 0:00:14]} 4. exd4 {[%emt 0:00:
00]} cxd4 {[%emt 0:00:05]} 5. d3 {[%emt 0:00:06]} Nc6 {[%emt 0:00:18]} 6. g3 {
[%emt 0:00:12] A09: Réti Opening: 1 Nf3 d5 2 c4.} e5 {[%emt 0:05:14]} 7. Bg2 {
[%emt 0:00:22]} Nf6 $1 {[%emt 0:00:07] is currently scoring better than 7...
Bd6.} 8. O-O {[%emt 0:00:29]} Bd6 {[%emt 0:00:26]} 9. a3 $1 {[%emt 0:00:00]} a5
{[%emt 0:00:06]} 10. Bg5 {[%emt 0:00:44]} h6 {[%emt 0:02:55]} 11. Bxf6 {
[%emt 0:00:09]} Qxf6 {[%emt 0:00:07]} 12. Nbd2 {[%emt 0:00:19]} Qd8 {[%emt 0:
00:59]} 13. Re1 {[%emt 0:01:49][%cal Yc4c5] White wants to play c5!} (13. c5 $5
{[%cal Rc5d6]} Bc7 14. Nc4 $11) 13... O-O {[%emt 0:00:15]} 14. Qc2 {[%emt 0:00:
20] [#]} (14. c5 $1 $14 Bc7 15. Nc4) 14... Re8 $146 {[%emt 0:01:34]} ({
Predecessor:} 14... Bc7 15. c5 Be6 16. Nc4 Qf6 17. Nfd2 Bf5 18. Ne4 Qg6 19.
Rad1 Rad8 20. Ncd6 Bxd6 21. Nxd6 {1-0 (41) Gogolev,A (2427)-Bublei,P (2387)
Sochi 2017}) 15. Rab1 {[%emt 0:02:45]} a4 {[%emt 0:00:15]} 16. c5 {[%emt 0:00:
00]} Bc7 {[%emt 0:00:21]} 17. Nc4 {[%emt 0:01:57]} Be6 {[%emt 0:03:33]} 18.
Nfd2 {[%emt 0:03:03]} (18. Nfxe5 $2 Nxe5 19. Nxe5 Bb3 $19) 18... Bd5 {[%emt 0:
00:00]} 19. Ne4 {[%emt 0:04:16]} Bxc4 {[%emt 0:04:25]} 20. Qxc4 {[%emt 0:00:16]
} Qd7 {[%emt 0:00:31]} 21. Nd2 {[%emt 0:04:47]} Ba5 {[%emt 0:02:17]} 22. Re2 {
[%emt 0:03:49]} Bxd2 {[%emt 0:02:11]} 23. Rxd2 {[%emt 0:00:17]} Na5 {[%emt 0:
00:00]} 24. Qb4 {[%emt 0:04:43]} f5 {[%emt 0:05:58]} (24... Kh8 $11) 25. Re1
$16 {[%emt 0:06:24]} Nb3 {[%emt 0:08:48]} 26. Rdd1 {[%emt 0:05:23]} (26. Rde2
$142 e4 27. dxe4) 26... Ra5 {[%emt 0:02:43]} (26... Rab8 $142) 27. Qc4+ {
[%emt 0:02:29]} Kf8 {[%emt 0:06:12]} 28. c6 {[%emt 0:00:39]} bxc6 {[%emt 0:00:
00]} (28... Qc7 $16) 29. Bxc6 $18 {[%emt 0:00:32]} Qc7 {[%emt 0:02:48]} 30.
Qb4+ {[%emt 0:10:08]} ({Weaker is} 30. Bxe8 Qxc4 31. dxc4 Kxe8 $14) 30... Re7 {
[%emt 0:00:14]} 31. Bxa4 {[%emt 0:00:11]} Nc5 {[%emt 0:00:23]} 32. Bb5 {
[%emt 0:03:18]} (32. Rc1 $18 {Hoping for Bb5.} Rxa4 33. Qxc5 Qxc5 34. Rxc5)
32... Qb6 $16 {[%emt 0:03:26]} 33. Bc4 {[%emt 0:02:58]} Nd7 {[%emt 0:00:57]}
34. Qd2 {[%emt 0:04:21]} Rc5 {[%emt 0:15:20]} (34... g5 $16) 35. Rc1 {[%emt 0:
00:00]} e4 {[%emt 0:03:54]} 36. dxe4 {[%emt 0:10:11]} Ne5 {[%emt 0:00:11] [#]}
37. Be2 {[%emt 0:00:09] Prevents Nf3+.} d3 {[%emt 0:07:47]} 38. Rxc5 {[%emt 0:
00:00]} ({Not} 38. exf5 $2 dxe2 39. Qxe2 {[#]} Qb7 $1 40. Rxc5 Nf3+ 41. Qxf3
Qxf3 42. Rxe7 Kxe7 $19) 38... Qxc5 {[%emt 0:00:13]} 39. Bd1 {[%emt 0:00:16]} ({
But not} 39. exf5 $2 dxe2 40. Qe3 Qd5 41. Rxe2 Nf3+ 42. Kf1 Rxe3 $19) 39...
fxe4 $2 {[%emt 0:10:04]} (39... Nc4 40. Qxd3 Nxb2) 40. Rxe4 $18 {[%emt 0:02:51]
} g5 {[%emt 0:01:36] Against Qf4+} 41. Qe3 {[%emt 0:36:37]} Qxe3 {[%emt 0:00:
00]} 42. Rxe3 {[%emt 0:02:15] Endgame KRB-KRN} d2 $2 {[%emt 0:01:00]} (42...
Nc4) 43. Kf1 {[%emt 0:02:20]} g4 {[%emt 0:00:34]} 44. Ke2 {[%emt 0:00:00]} Kg7
{[%emt 0:00:32]} 45. b3 {[%emt 0:01:27]} Kf6 {[%emt 0:00:09]} 46. Kxd2 {
[%emt 0:01:39]} Rd7+ {[%emt 0:00:10]} 47. Kc2 {[%emt 0:00:36]} Rc7+ {[%emt 0:
00:00]} 48. Rc3 {[%emt 0:00:42]} Rf7 {[%emt 0:00:19]} 49. f4 {[%emt 0:00:28]}
gxf3 {[%emt 0:00:10]} 50. Bxf3 {[%emt 0:00:09]} Ke6 {[%emt 0:00:13]} 51. Be2 {
[%emt 0:03:15]} Rf2 {[%emt 0:00:11]} 52. Kd1 {[%emt 0:00:22]} Rxh2 {[%emt 0:00:
00]} 53. a4 {[%emt 0:00:39]} Kd5 {[%emt 0:00:37]} (53... Kd6 $142 54. a5 Nc6)
54. b4 {[%emt 0:01:36]} Kd4 {[%emt 0:00:24]} 55. Rb3 {[%emt 0:00:56] And now
a5 would win.} Rh1+ {[%emt 0:01:13]} 56. Kd2 {[%emt 0:00:28]} Rh2 $2 {[%emt 0:
00:00]} (56... Ra1 57. b5 Rxa4) 57. Ke1 {[%emt 0:00:00]} Nc4 $2 {[%emt 0:00:00]
} (57... Rh1+ {might work better.} 58. Kf2 Rh2+ 59. Kf1 Rh1+ 60. Kg2 Ra1) 58.
Rd3+ {[%emt 0:00:00]} Ke4 {[%emt 0:00:00]} 59. Rf3 {[%emt 0:00:00]} Ne5 {
[%emt 0:00:00]} 60. Rf2 {[%emt 0:00:00]} Rh3 {[%emt 0:00:00]} 61. Rg2 $2 {
[%emt 0:00:00]} (61. b5 $18 {has better winning chances.}) 61... Ke3 $16 {
[%emt 0:00:00]} 62. Kd1 {[%emt 0:00:00] Strongly threatening Kc2.} Nc6 {
[%emt 0:00:00]} 63. Bg4 {[%emt 0:00:00]} Rh1+ {[%emt 0:00:00]} 64. Kc2 {
[%emt 0:00:00] Black must now prevent b5.} Nxb4+ {[%emt 0:00:00]} 65. Kb3 {
[%emt 0:00:00]} Nd3 {[%emt 0:00:00]} (65... Nc6 $142) 66. a5 {[%emt 0:00:00]} (
66. Re2+ $16 Kd4 67. Rd2 Rb1+ 68. Ka2) 66... Ra1 $11 {[%emt 0:00:23] The
position is equal.} 67. Re2+ {[%emt 0:01:05]} Kd4 {[%emt 0:00:03]} 68. Rd2 {
[%emt 0:00:22] Threatens to win with Be2.} Rxa5 {[%emt 0:03:01]} 69. Be2 {
[%emt 0:00:27]} Ke3 {[%emt 0:00:11] ( -> ...Rb5+)} 70. Rxd3+ {[%emt 0:00:07]}
Kxe2 {[%emt 0:00:02] KR-KR} 71. Rd6 {[%emt 0:02:36]} h5 {[%emt 0:00:08]} 72.
Rg6 {[%emt 0:00:34] Inhibits Rg5.} Kf3 {[%emt 0:00:05]} 73. Kc3 {[%emt 0:00:12]
} Kf2 {[%emt 0:02:26]} 74. Kd2 {[%emt 0:00:16]} Ra2+ {[%emt 0:00:22]} 75. Kd1 {
[%emt 0:00:20]} Kf3 {[%emt 0:00:40]} 76. Rg5 {[%emt 0:00:47]} Rh2 {[%emt 0:00:
00]} 77. Ke1 {[%emt 0:00:23]} Rh3 {[%emt 0:00:26]} 78. Kd2 {[%emt 0:00:11]} Kf2
{[%emt 0:00:12]} 79. Kd1 {[%emt 0:00:12]} Ke3 {[%emt 0:00:49]} 80. Re5+ {
[%emt 0:00:29]} Kf3 {[%emt 0:02:03]} 81. Rg5 {[%emt 0:00:06]} Rh2 {[%emt 0:00:
00]} 82. Ke1 {[%emt 0:00:28]} Re2+ {[%emt 0:00:33]} 83. Kd1 {[%emt 0:00:16]}
Rh2 {[%emt 0:00:31]} 84. Ke1 {[%emt 0:00:08]} Rh3 {[%emt 0:00:24]} 85. Kd2 {
[%emt 0:00:10]} Rh1 {[%emt 0:00:07]} 86. Kc2 {[%emt 0:00:27]} Ke3 {[%emt 0:00:
00]} 87. Re5+ {[%emt 0:00:27]} Kd4 {[%emt 0:00:13]} 88. Rg5 {[%emt 0:00:10]}
Ke4 {[%emt 0:00:54]} 89. Kd2 {[%emt 0:00:13]} Kf3 {[%emt 0:00:39]} 90. Kc2 {
[%emt 0:00:13]} Rh2+ {[%emt 0:00:14]} 91. Kd1 {[%emt 0:00:34]} Kf2 {[%emt 0:00:
00]} 92. Kd2 {[%emt 0:00:20]} Rh1 {[%emt 0:00:24]} 93. Kc2 {[%emt 0:00:12]
Black defended with fortune. Weighted Error Value: White=0.22 (precise) /
Black=0.36} 1/2-1/2

[Event "44th Chess Olympiad Women 2022"]
[Site "Chennai"]
[Date "2022.07.30"]
[Round "2.34"]
[White "Mouradian, Knarik"]
[Black "Cramling, Pia"]
[Result "0-1"]
[WhiteElo "2121"]
[BlackElo "2459"]
[Annotator "TA"]
[PlyCount "18"]
[EventDate "2022.??.??"]
[TimeControl "60"]

{[%evp 12,18,1,-7,0,-41,-41,-372,-368]} 1. e4 {[%emt 0:00:05]} c5 {[%emt 0:00:
00]} 2. Nc3 {[%emt 0:00:27]} Nc6 {[%emt 0:00:13]} 3. g3 {[%emt 0:00:20]} g6 {
[%emt 0:00:16]} 4. Bg2 {[%emt 0:00:16]} Bg7 {[%emt 0:00:06]} 5. d3 {[%emt 0:00:
00]} d6 {[%emt 0:01:55]} 6. Be3 {[%emt 0:00:39]} e5 {[%emt 0:00:48]} 7. Nh3 {
[%emt 0:01:31]} h5 {[%emt 0:08:44] B26: Closed Sicilian: 3 g3, lines with
early Be3.} 8. Qd2 {[%emt 0:10:29] [#]} Nd4 $146 {[%emt 0:05:04] [#] aiming
for ...Bxh3.} ({Predecessor:} 8... Nh6 9. f3 Nd4 10. Nf2 Be6 11. Ne2 d5 12. c3
Nxe2 13. Qxe2 d4 14. cxd4 cxd4 {1-0 (46) Robichaud,L (2026)-Duong,T (2230)
Longueuil 2019}) 9. f3 $2 {[%emt 0:14:22]} (9. Ng1 $15) 9... Bxh3 {[%emt 0:00:
59] Weighted Error Value: White=1.78/Black=0.02 (flawless)} 0-1

[Event "44th Chess Olympiad Women 2022"]
[Site "Chennai"]
[Date "2022.07.31"]
[Round "3.1"]
[White "Houska, Jovanka"]
[Black "Harika, Dronavalli"]
[Result "1/2-1/2"]
[WhiteElo "2360"]
[BlackElo "2517"]
[Annotator "RC"]
[PlyCount "80"]
[EventDate "2022.??.??"]
[TimeControl "60"]

1. d4 {[%emt 0:00:06]} Nf6 {[%emt 0:00:14]} 2. Nf3 {[%emt 0:00:05]} d5 {
[%emt 0:00:12]} 3. c4 {[%emt 0:00:32]} e6 {[%emt 0:00:07]} 4. Nc3 {[%emt 0:00:
00]} Nbd7 {[%emt 0:00:11]} 5. cxd5 {[%emt 0:03:19]} exd5 {[%emt 0:00:26]} 6.
Bg5 {[%emt 0:02:54]} Be7 {[%emt 0:02:46]} 7. e3 {[%emt 0:01:36]} c6 {[%emt 0:
00:00]} 8. Bd3 {[%emt 0:03:11]} h6 {[%emt 0:05:01]} 9. Bh4 {[%emt 0:01:09]} O-O
{[%emt 0:00:32]} 10. Qc2 {[%emt 0:01:09]} Re8 {[%emt 0:00:22]} 11. Bg3 {
[%emt 0:00:31]} a5 {[%emt 0:06:16]} 12. O-O {[%emt 0:02:53]} Bf8 {[%emt 0:00:
00]} 13. h3 {[%emt 0:05:50]} b5 {[%emt 0:11:30]} 14. Rfe1 {[%emt 0:31:33]} Ba6
{[%emt 0:06:07]} 15. a3 {[%emt 0:09:59]} Qb6 {[%emt 0:04:03]} 16. Ne5 {[%emt 0:
00:00]} b4 {[%emt 0:11:33]} 17. axb4 {[%emt 0:07:47]} Bxd3 {[%emt 0:01:59]} 18.
Nxd3 {[%emt 0:02:19]} axb4 {[%emt 0:01:50]} 19. Na4 {[%emt 0:00:25]} Qb5 {
[%emt 0:02:07]} 20. b3 {[%emt 0:00:27]} Ne4 {[%emt 0:04:54]} 21. Ne5 {[%emt 0:
00:00]} Nxe5 {[%emt 0:02:16]} 22. Bxe5 {[%emt 0:00:03]} Nc3 {[%emt 0:03:27]}
23. Bg3 {[%emt 0:12:00]} Rec8 {[%emt 0:06:49]} 24. Kh2 {[%emt 0:01:45]} Nxa4 {
[%emt 0:04:44]} 25. bxa4 {[%emt 0:00:36]} Qc4 {[%emt 0:00:25]} 26. Rec1 {
[%emt 0:02:48]} Qxc2 {[%emt 0:01:54]} 27. Rxc2 {[%emt 0:00:03]} f6 {[%emt 0:00:
00]} 28. a5 {[%emt 0:01:38]} Ra6 {[%emt 0:02:17]} 29. f3 {[%emt 0:00:03]} c5 {
[%emt 0:02:00]} 30. dxc5 {[%emt 0:01:06]} Rxc5 {[%emt 0:00:04]} 31. Rxc5 {
[%emt 0:00:55]} Bxc5 {[%emt 0:00:07]} 32. e4 {[%emt 0:00:27]} dxe4 {[%emt 0:00:
00]} 33. fxe4 {[%emt 0:00:03]} Kf7 {[%emt 0:02:26]} 34. Bc7 {[%emt 0:00:53]}
Ke6 {[%emt 0:00:14]} 35. Rc1 {[%emt 0:00:13]} Bd6+ {[%emt 0:03:41]} 36. Bxd6 {
[%emt 0:00:02]} Kxd6 {[%emt 0:00:07]} 37. Rc4 {[%emt 0:00:08]} b3 {[%emt 0:00:
00]} 38. Rb4 {[%emt 0:00:03]} Rxa5 {[%emt 0:00:17]} 39. Rxb3 {[%emt 0:00:04]}
Ra4 {[%emt 0:01:01]} 40. Rb7 {[%emt 0:00:20]} Ke5 {[%emt 0:00:19]} 1/2-1/2

[Event "44th Chess Olympiad Women 2022"]
[Site "Chennai"]
[Date "2022.07.31"]
[Round "3.1"]
[White "Kulkarni Bhakti"]
[Black "Kalaiyalahan, Akshaya"]
[Result "1-0"]
[WhiteElo "2373"]
[BlackElo "2158"]
[Annotator "RC"]
[PlyCount "117"]
[EventDate "2022.??.??"]
[TimeControl "60"]

1. d4 {[%emt 0:00:17]} d5 {[%emt 0:00:14]} 2. Nf3 {[%emt 0:02:28]} Nf6 {
[%emt 0:00:39]} 3. Bf4 {[%emt 0:00:25]} e6 {[%emt 0:01:22]} 4. e3 {[%emt 0:00:
00]} c5 {[%emt 0:01:55]} 5. c3 {[%emt 0:06:14]} Nc6 {[%emt 0:02:39]} 6. Bb5 {
[%emt 0:03:01]} Qb6 {[%emt 0:06:08]} 7. Qe2 {[%emt 0:05:56]} a6 {[%emt 0:03:26]
} 8. Ba4 {[%emt 0:04:42]} Be7 {[%emt 0:05:31]} 9. Ne5 {[%emt 0:07:38]} O-O {
[%emt 0:03:43]} 10. h4 {[%emt 0:02:52]} cxd4 {[%emt 0:05:32]} 11. Nxc6 {
[%emt 0:10:43]} bxc6 {[%emt 0:00:05]} 12. exd4 {[%emt 0:00:23]} a5 {[%emt 0:00:
00]} 13. Bd1 {[%emt 0:02:33]} c5 {[%emt 0:03:12]} 14. Be3 {[%emt 0:05:49]} Ba6
{[%emt 0:04:26]} 15. Qc2 {[%emt 0:04:54]} cxd4 {[%emt 0:04:06]} 16. Bxd4 {
[%emt 0:00:55]} Qc7 {[%emt 0:00:11]} 17. Be2 {[%emt 0:08:09]} e5 {[%emt 0:00:
00]} 18. Be3 {[%emt 0:02:11]} d4 {[%emt 0:03:18]} 19. Bg5 {[%emt 0:01:57]} Bb7
{[%emt 0:02:53]} 20. Bd3 {[%emt 0:06:13]} e4 {[%emt 0:06:25]} 21. cxd4 {
[%emt 0:00:54]} Qd7 {[%emt 0:04:47]} 22. Be2 {[%emt 0:06:26]} Qxd4 {[%emt 0:00:
00]} 23. O-O {[%emt 0:01:03]} Rfc8 {[%emt 0:05:26]} 24. Nc3 {[%emt 0:00:17]} h6
{[%emt 0:01:35]} 25. Be3 {[%emt 0:01:29]} Qe5 {[%emt 0:00:11]} 26. Rfd1 {
[%emt 0:03:39]} Nd5 {[%emt 0:04:00]} 27. Bd4 {[%emt 0:00:17]} Qc7 {[%emt 0:00:
00]} 28. Bg4 {[%emt 0:03:53]} Rd8 {[%emt 0:02:12]} 29. g3 {[%emt 0:02:07]} Nb4
{[%emt 0:01:54]} 30. Qe2 {[%emt 0:01:27]} Nd3 {[%emt 0:07:42]} 31. Be3 {
[%emt 0:00:02]} Qc6 {[%emt 0:01:22]} 32. Bf5 {[%emt 0:00:44]} Qc4 {[%emt 0:00:
00]} 33. Rac1 {[%emt 0:01:56]} Qa6 {[%emt 0:00:48]} 34. Rc2 {[%emt 0:00:40]}
Ne5 {[%emt 0:00:35]} 35. Rxd8+ {[%emt 0:01:04]} Bxd8 {[%emt 0:00:03]} 36. Bxe4
{[%emt 0:01:06]} Qxe2 {[%emt 0:00:56]} 37. Rxe2 {[%emt 0:00:04]} Bxe4 {[%emt 0:
00:00]} 38. Nxe4 {[%emt 0:00:02]} Ra6 {[%emt 0:00:53]} 39. Kg2 {[%emt 0:00:34]}
f5 {[%emt 0:00:20]} 40. Nc5 {[%emt 0:00:38]} Rc6 {[%emt 0:00:17]} 41. Bd4 {
[%emt 0:31:08]} Nf7 {[%emt 0:04:06]} 42. Re8+ {[%emt 0:00:00]} Kh7 {[%emt 0:00:
00]} 43. Ne6 {[%emt 0:00:00]} Rd6 {[%emt 0:00:07]} 44. Bc3 {[%emt 0:00:00]} a4
{[%emt 0:04:16]} 45. Nxg7 {[%emt 0:00:00]} a3 {[%emt 0:02:26]} 46. Nxf5 {
[%emt 0:00:00]} axb2 {[%emt 0:01:34]} 47. Bxb2 {[%emt 0:00:00]} Rd2 {[%emt 0:
00:00]} 48. Bd4 {[%emt 0:00:00]} h5 {[%emt 0:06:06]} 49. g4 {[%emt 0:00:00]}
hxg4 {[%emt 0:01:12]} 50. h5 {[%emt 0:00:00]} Rc2 {[%emt 0:04:38]} 51. Nd6 {
[%emt 0:00:00]} Bb6 {[%emt 0:00:54]} 52. Bxb6 {[%emt 0:00:00]} Nxd6 {[%emt 0:
00:00]} 53. Re7+ {[%emt 0:00:00]} Kg8 {[%emt 0:00:19]} 54. h6 {[%emt 0:00:00]}
Nf5 {[%emt 0:01:04]} 55. h7+ {[%emt 0:00:00]} Kh8 {[%emt 0:00:03]} 56. Rf7 {
[%emt 0:00:00]} Rb2 {[%emt 0:08:05]} 57. Bc7 {[%emt 0:00:00]} Nh4+ {[%emt 0:00:
00]} 58. Kg3 {[%emt 0:00:00]} Ng6 {[%emt 0:00:42]} 59. Bd8 {[%emt 0:00:00]} 1-0

[Event "44th Chess Olympiad Women 2022"]
[Site "Chennai"]
[Date "2022.07.31"]
[Round "3.1"]
[White "Vaishali R"]
[Black "Toma, Katarzyna"]
[Result "1-0"]
[WhiteElo "2442"]
[BlackElo "2303"]
[Annotator "RC"]
[PlyCount "129"]
[EventDate "2022.??.??"]
[TimeControl "60"]

1. e4 {[%emt 0:00:39]} c5 {[%emt 0:00:07]} 2. Nf3 {[%emt 0:00:10]} Nc6 {
[%emt 0:00:09]} 3. Bb5 {[%emt 0:00:25]} g6 {[%emt 0:00:31]} 4. O-O {[%emt 0:00:
00]} Bg7 {[%emt 0:00:21]} 5. c3 {[%emt 0:00:28]} e5 {[%emt 0:09:42]} 6. d4 {
[%emt 0:01:08]} exd4 {[%emt 0:08:26]} 7. cxd4 {[%emt 0:00:11]} cxd4 {[%emt 0:
00:00]} 8. Bf4 {[%emt 0:00:38]} d6 {[%emt 0:04:09]} 9. Nxd4 {[%emt 0:01:34]}
Nge7 {[%emt 0:00:24]} 10. Bxd6 {[%emt 0:13:55]} O-O {[%emt 0:11:29]} 11. Nxc6 {
[%emt 0:10:21]} bxc6 {[%emt 0:01:09]} 12. Bxe7 {[%emt 0:00:40]} Qxe7 {[%emt 0:
00:00]} 13. Bxc6 {[%emt 0:00:04]} Bb7 {[%emt 0:10:53]} 14. Bxb7 {[%emt 0:00:24]
} Qxb7 {[%emt 0:00:06]} 15. Qb3 {[%emt 0:05:57]} Qxe4 {[%emt 0:05:33]} 16. Nc3
{[%emt 0:07:52]} Qh4 {[%emt 0:01:10]} 17. g3 {[%emt 0:08:12]} Qf6 {[%emt 0:00:
00]} 18. Rad1 {[%emt 0:02:17]} Rab8 {[%emt 0:07:17]} 19. Qc2 {[%emt 0:06:09]}
h5 {[%emt 0:06:34]} 20. h4 {[%emt 0:12:24]} Rfc8 {[%emt 0:08:45]} 21. Rfe1 {
[%emt 0:06:59]} Qb6 {[%emt 0:07:38]} 22. Re2 {[%emt 0:01:29]} Qa5 {[%emt 0:00:
00]} 23. Rd3 {[%emt 0:01:18]} Qf5 {[%emt 0:02:30]} 24. Qd1 {[%emt 0:05:27]} Re8
{[%emt 0:07:24]} 25. Nd5 {[%emt 0:02:44]} Rxe2 {[%emt 0:01:20]} 26. Qxe2 {
[%emt 0:00:02]} Rxb2 {[%emt 0:01:07]} 27. Ne7+ {[%emt 0:03:10]} Kh7 {[%emt 0:
00:00]} 28. Qxb2 {[%emt 0:01:04]} Qxd3 {[%emt 0:00:08]} 29. Qb8 {[%emt 0:00:03]
} Qf3 {[%emt 0:01:26]} 30. Qxa7 {[%emt 0:01:32]} Be5 {[%emt 0:00:29]} 31. a4 {
[%emt 0:05:57]} Qd1+ {[%emt 0:00:32]} 32. Kg2 {[%emt 0:00:25]} Qd2 {[%emt 0:00:
00]} 33. Qa8 {[%emt 0:00:47]} Kg7 {[%emt 0:00:06]} 34. Qf3 {[%emt 0:02:11]} Bd4
{[%emt 0:00:36]} 35. Nc6 {[%emt 0:00:16]} Bb6 {[%emt 0:00:22]} 36. Ne5 {
[%emt 0:00:16]} Qa2 {[%emt 0:00:31]} 37. Qf4 {[%emt 0:00:56]} Qd5+ {[%emt 0:00:
00]} 38. Nf3 {[%emt 0:00:16]} f6 {[%emt 0:00:32]} 39. Qb4 {[%emt 0:00:56]} Bc5
{[%emt 0:00:28]} 40. Qc3 {[%emt 0:00:29]} Bb6 {[%emt 0:00:44]} 41. Qb4 {
[%emt 0:30:26]} Bc5 {[%emt 0:02:38]} 42. Qd2 {[%emt 0:00:00]} Qb7 {[%emt 0:00:
00]} 43. Qd3 {[%emt 0:00:00]} Bb6 {[%emt 0:04:40]} 44. Qb5 {[%emt 0:00:00]} Qa7
{[%emt 0:00:34]} 45. Qe2 {[%emt 0:00:00]} Bc5 {[%emt 0:02:59]} 46. Qc2 {
[%emt 0:00:00]} Bb6 {[%emt 0:00:49]} 47. Ne1 {[%emt 0:00:00]} Qe7 {[%emt 0:00:
00]} 48. Kf1 {[%emt 0:00:00]} Ba5 {[%emt 0:02:09]} 49. Ng2 {[%emt 0:00:00]} Qb7
{[%emt 0:01:50]} 50. Qd3 {[%emt 0:00:00]} Qc6 {[%emt 0:02:46]} 51. Qd1 {
[%emt 0:00:00]} Bb6 {[%emt 0:01:13]} 52. Kg1 {[%emt 0:00:00]} Qc3 {[%emt 0:00:
00]} 53. Qd7+ {[%emt 0:01:41]} Kh6 {[%emt 0:00:17]} 54. Qe8 {[%emt 0:00:14]} f5
{[%emt 0:05:50]} 55. Ne3 {[%emt 0:01:51]} Bd4 {[%emt 0:01:00]} 56. Kg2 {
[%emt 0:00:54]} Qd2 {[%emt 0:00:57]} 57. Qe6 {[%emt 0:00:34]} Kh7 {[%emt 0:00:
00]} 58. Qd7+ {[%emt 0:00:54]} Kh8 {[%emt 0:00:42]} 59. a5 {[%emt 0:01:05]} Qb2
{[%emt 0:00:44]} 60. a6 {[%emt 0:00:36]} Qb6 {[%emt 0:00:54]} 61. Qc8+ {
[%emt 0:00:27]} Kg7 {[%emt 0:00:08]} 62. Qb7+ {[%emt 0:00:13]} Kf8 {[%emt 0:00:
00]} 63. Qxb6 {[%emt 0:01:14]} Bxb6 {[%emt 0:00:02]} 64. Nd5 {[%emt 0:00:08]}
Bc5 {[%emt 0:00:23]} 65. Nb4 {[%emt 0:00:10]} 1-0

[Event "44th Chess Olympiad Women 2022"]
[Site "Chennai"]
[Date "2022.07.31"]
[Round "3.1"]
[White "Yao, Lan"]
[Black "Tania, Sachdev"]
[Result "1/2-1/2"]
[WhiteElo "2274"]
[BlackElo "2399"]
[Annotator "RC"]
[PlyCount "101"]
[EventDate "2022.??.??"]
[TimeControl "60"]

1. e4 {[%emt 0:00:02]} e5 {[%emt 0:00:44]} 2. Nf3 {[%emt 0:00:04]} Nc6 {
[%emt 0:00:04]} 3. Bc4 {[%emt 0:00:03]} Nf6 {[%emt 0:00:17]} 4. d3 {[%emt 0:00:
00]} h6 {[%emt 0:00:27]} 5. c3 {[%emt 0:00:31]} d6 {[%emt 0:00:05]} 6. a4 {
[%emt 0:01:01]} a5 {[%emt 0:01:28]} 7. O-O {[%emt 0:05:06]} g5 {[%emt 0:00:52]}
8. Be3 {[%emt 0:06:45]} Bg7 {[%emt 0:01:43]} 9. Nbd2 {[%emt 0:08:34]} O-O {
[%emt 0:21:22]} 10. Bb3 {[%emt 0:04:53]} d5 {[%emt 0:15:56]} 11. exd5 {[%emt 0:
00:00]} Nxd5 {[%emt 0:00:02]} 12. Ne4 {[%emt 0:06:24]} Bg4 {[%emt 0:17:39]} 13.
Ng3 {[%emt 0:10:59]} Be6 {[%emt 0:03:54]} 14. d4 {[%emt 0:13:45]} f5 {[%emt 0:
00:00]} 15. Nh5 {[%emt 0:02:45]} e4 {[%emt 0:02:59]} 16. Nxg7 {[%emt 0:01:23]}
Kxg7 {[%emt 0:00:04]} 17. Ne1 {[%emt 0:01:37]} f4 {[%emt 0:08:25]} 18. Bc1 {
[%emt 0:01:54]} Bf5 {[%emt 0:00:43]} 19. c4 {[%emt 0:02:10]} Nf6 {[%emt 0:00:
00]} 20. d5 {[%emt 0:01:44]} Ne5 {[%emt 0:01:16]} 21. Nc2 {[%emt 0:04:36]} c5 {
[%emt 0:06:13]} 22. dxc6 {[%emt 0:00:57]} Nxc6 {[%emt 0:00:07]} 23. Bd2 {
[%emt 0:02:31]} Qc7 {[%emt 0:02:15]} 24. Bc3 {[%emt 0:01:53]} Rad8 {[%emt 0:00:
00]} 25. Qc1 {[%emt 0:03:01]} Kh7 {[%emt 0:00:29]} 26. c5 {[%emt 0:04:48]} Ng4
{[%emt 0:04:46]} 27. f3 {[%emt 0:03:46]} exf3 {[%emt 0:00:10]} 28. gxf3 {
[%emt 0:00:14]} Nge5 {[%emt 0:00:14]} 29. Ne1 {[%emt 0:00:33]} Qe7 {[%emt 0:00:
00]} 30. Bc2 {[%emt 0:01:06]} Qxc5+ {[%emt 0:00:17]} 31. Kh1 {[%emt 0:00:03]}
Nc4 {[%emt 0:01:47]} 32. Ng2 {[%emt 0:00:57]} Ne3 {[%emt 0:01:43]} 33. Nxe3 {
[%emt 0:00:43]} fxe3 {[%emt 0:00:08]} 34. Bxf5+ {[%emt 0:00:46]} Rxf5 {[%emt 0:
00:00]} 35. Qe1 {[%emt 0:00:28]} Re8 {[%emt 0:00:36]} 36. Qe2 {[%emt 0:00:58]}
Nd4 {[%emt 0:01:03]} 37. Bxd4 {[%emt 0:01:06]} Qxd4 {[%emt 0:00:04]} 38. Rad1 {
[%emt 0:00:30]} Qf6 {[%emt 0:00:59]} 39. Rd7+ {[%emt 0:00:23]} Re7 {[%emt 0:00:
00]} 40. Rxe7+ {[%emt 0:00:46]} Qxe7 {[%emt 0:00:01]} 41. Qd3 {[%emt 0:30:41]}
Qe5 {[%emt 0:13:27]} 42. Re1 {[%emt 0:00:00]} Qd5 {[%emt 0:01:00]} 43. Rxe3 {
[%emt 0:00:00]} Qxd3 {[%emt 0:00:16]} 44. Rxd3 {[%emt 0:00:00]} b5 {[%emt 0:00:
00]} 45. axb5 {[%emt 0:00:00]} Rxb5 {[%emt 0:00:01]} 46. b3 {[%emt 0:00:00]}
Kg6 {[%emt 0:00:07]} 47. Rd6+ {[%emt 0:00:00]} Kh5 {[%emt 0:02:43]} 48. Rd3 {
[%emt 0:00:00]} Kg6 {[%emt 0:02:36]} 49. Rd6+ {[%emt 0:00:00]} Kh5 {[%emt 0:00:
00]} 50. Rd3 {[%emt 0:00:00]} Kg6 {[%emt 0:00:01]} 51. Rd6+ {[%emt 0:00:00]}
1/2-1/2